bitfinex-derivatives/quotes_SOLF0:USTF0_20241017
["timestamp","ask_amount","ask_price","bid_price","bid_amount"]
[1729146040713,17.3846,153.18,153.08,14.12]
[1729146040902,22.2646,153.18,153.1,14.12]
[1729146041103,22.2646,153.18,153.13,3.2654]
[1729146041813,19.0,153.18,153.1,19.0]
[1729146042017,19.0,153.18,153.12,3.2658]
[1729146042018,3.265,153.16,153.12,3.2658]
[1729146042713,3.2657,153.13,153.09,3.2665]
[1729146042918,14.12,153.14,153.08,4.88]
[1729146044313,3.2655,153.14,153.09,3.2663]
[1729146044811,3.2655,153.14,153.1,3.2663]
[1729146046812,4.88,153.18,153.08,4.88]
[1729146046813,14.12,153.17,153.08,19.0]
[1729146047018,4.88,153.18,153.1,14.12]
[1729146047720,19.0,153.19,153.15,3.2651]
[1729146047913,19.0,153.19,153.16,3.29555392]
[1729146049115,19.0,153.19,153.15,3.2651]
[1729146049313,3.2651,153.16,153.12,4.88]
[1729146050317,3.2651,153.16,153.12,8.1457]
[1729146051117,3.2651,153.16,153.12,4.88]
[1729146051321,3.2653,153.15,153.12,4.88]
[1729146051514,3.2653,153.15,153.07,15.5354]
[1729146051515,3.2653,153.15,153.09,6.3406]
[1729146052022,3.2653,153.15,153.11,3.266]
[1729146052216,3.2651,153.16,153.11,3.266]
[1729146052721,14.12,153.17,153.09,6.3406]
[1729146052921,17.3849,153.17,153.12,3.2657]
[1729146054019,3.2651,153.16,153.12,3.2657]
[1729146054219,14.12,153.17,153.11,3.266]
[1729146054420,14.12,153.17,153.09,6.3406]
[1729146054819,14.12,153.17,153.12,3.2657]
[1729146056423,3.265,153.16,153.12,3.2657]
[1729146058627,14.12,153.17,153.09,6.3406]
[1729146058830,17.3849,153.17,153.13,3.2655]
[1729146059530,3.265,153.16,153.13,3.2655]
[1729146060132,3.2648,153.17,153.12,3.2659]
[1729146060335,19.0,153.19,153.09,6.3406]
[1729146061535,3.265,153.17,153.12,3.2659]
[1729146061730,6.525,153.28,153.13,4.88]
[1729146061932,15.5241,153.24,153.14,14.12]
[1729146062232,3.2641,153.21,153.14,17.37930695]
[1729146062736,20.4041,153.24,153.14,17.37930695]
[1729146062934,20.4041,153.24,153.15,1.3703]
[1729146063337,3.2637,153.22,153.19,3.2643]
[1729146068340,1.4041,153.24,153.17,4.88]
[1729146068544,4.6674,153.24,153.17,4.88]
[1729146069145,3.2635,153.23,153.19,3.2643]
[1729146070147,3.2641,153.21,153.17,8.1447]
[1729146070348,14.12,153.23,153.17,4.88]
[1729146070748,3.2638,153.22,153.18,3.2644]
[1729146071449,14.12,153.23,153.17,4.88]
[1729146071651,14.12,153.23,153.17,8.1447]
[1729146072146,3.2638,153.22,153.19,3.2644]
[1729146072444,2.8405,153.26,153.18,14.12]
[1729146072849,3.2631,153.25,153.21,3.2638]
[1729146073444,16.9605,153.26,153.16,14.12]
[1729146073640,14.12,153.24,153.16,4.88]
[1729146074242,3.2638,153.22,153.16,4.88]
[1729146074848,16.9605,153.26,153.16,19.0]
[1729146075050,3.2633,153.24,153.16,19.0]
[1729146075443,3.2633,153.24,153.2,3.264]
[1729146075645,16.9605,153.26,153.16,19.0]
[1729146075848,3.2633,153.24,153.16,19.0]
[1729146077055,3.2631,153.25,153.16,19.0]
[1729146077255,3.2631,153.25,153.21,3.2638]
[1729146079361,3.2631,153.25,153.16,19.0]
[1729146081457,3.2631,153.25,153.22,3.2636]
[1729146081763,20.2234,153.26,153.22,6.52262421]
[1729146082465,3.2634,153.24,153.22,3.25902421]
[1729146082662,3.2634,153.24,153.2,3.2641]
[1729146084862,16.9605,153.26,153.17,1.324]
[1729146085059,15.5866,153.26,153.22,3.2637]
[1729146085255,15.5866,153.26,153.22,6.46342597]
[1729146085458,18.8496,153.26,153.22,6.46342597]
[1729146085656,15.5866,153.26,153.22,3.19972597]
[1729146085858,10.4866,153.26,153.2,13.9]
[1729146086458,9.02,153.27,153.22,9.02]
[1729146086765,9.02,153.27,153.24,3.2632]
[1729146087754,12.2827,153.27,153.24,3.2632]
[1729146088762,9.02,153.27,153.22,12.33104066]
[1729146089258,12.2828,153.27,153.24,3.2632]
[1729146089471,6.3292,153.3,153.22,3.31104066]
[1729146089472,9.02,153.26,153.22,3.31104066]
[1729146089665,9.02,153.26,153.2,13.9]
[1729146089853,14.1,153.28,153.2,4.88]
[1729146090054,3.2632,153.25,153.22,3.2636]
[1729146090271,3.2632,153.25,153.22,6.52981896]
[1729146090455,3.2632,153.25,153.22,3.2636]
[1729146090768,14.1,153.28,153.22,6.51056175]
[1729146090962,3.263,153.26,153.22,6.51056175]
[1729146091266,3.263,153.26,153.23,3.2634]
[1729146091660,14.1,153.28,153.2,4.88]
[1729146091861,14.1,153.28,153.23,3.2635]
[1729146092063,14.1,153.28,153.23,6.50925535]
[1729146092762,3.263,153.26,153.24,3.2633]
[1729146092961,6.3292,153.3,153.24,3.2633]
[1729146093162,3.2628,153.27,153.24,3.2633]
[1729146093369,3.2628,153.27,153.2,18.98]
[1729146093964,3.2628,153.27,153.21,1.4552]
[1729146095372,3.2628,153.27,153.24,3.2632]
[1729146095669,3.2628,153.27,153.24,6.50689782]
[1729146096263,3.2625,153.28,153.24,6.50689782]
[1729146098069,3.2625,153.28,153.25,3.263]
[1729146098764,3.2625,153.28,153.25,6.52040702]
[1729146099966,15.5492,153.3,153.25,6.52040702]
[1729146100165,14.1,153.28,153.25,3.25740702]
[1729146100362,14.1,153.26,153.18,4.88]
[1729146100564,3.2636,153.23,153.18,4.88]
[1729146100765,3.2636,153.23,153.2,3.264]
[1729146101168,14.1,153.26,153.2,3.264]
[1729146102171,3.2636,153.23,153.2,3.264]
[1729146104482,3.2638,153.22,153.19,3.2643]
[1729146104780,14.1,153.26,153.18,4.88]
[1729146105373,3.2638,153.22,153.19,3.2643]
[1729146107579,3.2638,153.22,153.18,4.88]
[1729146107875,4.88,153.27,153.16,4.88]
[1729146107876,3.2645,153.19,153.16,4.88]
[1729146108980,14.1,153.21,153.09,2.725]
[1729146109280,14.1,153.18,153.09,2.725]
[1729146109477,18.98,153.18,153.1,4.88]
[1729146109876,3.2655,153.14,153.11,3.2659]
[1729146110079,18.98,153.18,153.11,3.2659]
[1729146110274,18.98,153.18,153.1,4.88]
[1729146110478,18.98,153.18,153.09,3.2664]
[1729146110479,3.2658,153.13,153.09,3.2664]
[1729146110681,14.1,153.15,153.08,4.88]
[1729146111683,4.88,153.18,153.1,14.1]
[1729146112375,3.2648,153.17,153.13,3.2656]
[1729146113273,4.88,153.19,153.1,14.1]
[1729146113274,3.2648,153.18,153.1,14.1]
[1729146113972,3.2648,153.18,153.13,3.2654]
[1729146114676,3.2648,153.18,153.12,4.88]
[1729146114876,3.2648,153.18,153.14,3.2654]
[1729146115074,3.2648,153.18,153.14,6.57021741]
[1729146115278,3.2648,153.18,153.14,3.2654]
[1729146115775,3.2648,153.18,153.14,6.60875565]
[1729146116773,3.2648,153.18,153.14,3.34335565]
[1729146116990,3.2648,153.18,153.15,3.2652]
[1729146117178,3.2648,153.18,153.15,6.55956637]
[1729146120685,3.2649,153.17,153.15,3.29436637]
[1729146120991,3.2649,153.17,153.14,3.2654]
[1729146121285,3.2649,153.17,153.14,3.28141634]
[1729146121488,3.2649,153.17,153.15,3.2652]
[1729146121689,3.2649,153.17,153.15,6.49795195]
[1729146121890,3.2647,153.18,153.15,6.49795195]
[1729146123795,12.2947,153.18,153.15,6.49795195]
[1729146125480,9.03,153.17,153.15,3.23275195]
[1729146125686,9.03,153.16,153.12,8.1458]
[1729146125886,9.03,153.16,153.1,9.03]
[1729146126194,12.2958,153.13,153.1,3.2662]
[1729146126791,13.7575,153.15,153.11,3.2659]
[1729146127491,3.2654,153.14,153.11,3.2659]
[1729146127794,9.03,153.14,153.05,1.4146]
[1729146127984,9.03,153.11,153.09,3.2665]
[1729146128188,9.03,153.11,153.09,6.54039261]
[1729146128487,9.03,153.11,153.09,3.2665]
[1729146128890,9.03,153.11,153.09,6.57240632]
[1729146129083,3.266,153.12,153.09,3.2665]
[1729146129289,3.2656,153.14,153.1,3.2661]
[1729146129488,9.03,153.14,153.1,3.2661]
[1729146130087,9.03,153.14,153.1,6.61284015]
[1729146130490,3.2658,153.13,153.1,3.34674015]
[1729146130684,9.03,153.14,153.09,9.03]
[1729146130888,15.3721,153.15,153.1,9.03]
[1729146131098,9.03,153.14,153.1,3.20342359]
[1729146131288,9.03,153.12,153.07,13.91]
[1729146131597,12.2967,153.08,153.07,3.2011366]
[1729146131895,12.2967,153.08,153.0,70.5]
[1729146131896,9.03,153.08,153.02,13.91]
[1729146132195,12.2973,153.06,153.02,20.46192177]
[1729146133291,12.2976,153.04,153.02,3.28412177]
[1729146133499,12.2976,153.04,153.0,3.2683]
[1729146133693,9.03,153.04,153.0,3.2683]
[1729146133892,3.2674,153.05,153.0,3.2683]
[1729146134199,3.2674,153.05,152.99,6.3345]
[1729146134498,17.3872,153.06,153.01,3.2682]
[1729146137092,14.12,153.06,153.01,3.2682]
[1729146137692,14.12,153.06,152.99,6.3345]
[1729146137888,14.12,153.06,153.02,3.268]
[1729146138197,14.12,153.06,153.02,6.48781341]
[1729146139098,17.3872,153.06,153.02,3.21981341]
[1729146139289,18.808,153.06,153.01,3.2681]
[1729146139891,15.5408,153.06,152.98,4.88]
[1729146140196,15.5408,153.06,153.02,3.268]
[1729146140396,15.5408,153.06,153.03,3.24813495]
[1729146141198,1.4208,153.06,153.03,3.24813495]
[1729146141399,1.4208,153.06,152.98,19.0]
[1729146141903,4.88,153.07,153.05,3.2671]
[1729146142101,4.88,153.07,153.06,3.20694898]
[1729146144906,4.88,153.07,153.03,3.2676]
[1729146145225,1.3216,153.06,152.98,19.0]
[1729146145398,1.3216,153.06,153.04,3.2674]
[1729146145597,1.3216,153.06,153.04,6.48340784]
[1729146146810,1.3216,153.06,153.04,3.21600784]
[1729146146999,4.88,153.07,153.0,14.12]
[1729146148506,4.88,153.07,153.06,3.2671]
[1729146148701,4.88,153.07,153.06,6.58464683]
[1729146148902,4.88,153.07,153.06,3.2671]
[1729146149106,4.88,153.07,153.05,6.59498024]
[1729146149613,4.88,153.07,153.0,14.12]
[1729146149805,4.88,153.07,153.04,3.2674]
[1729146150003,4.88,153.07,153.04,6.55454661]
[1729146152310,4.88,153.07,153.05,3.2673]
[1729146153098,4.88,153.07,153.05,6.61295886]
[1729146153906,13.92,153.07,153.05,6.61295886]
[1729146156312,9.04,153.07,153.05,6.61295886]
[1729146158215,13.92,153.08,153.05,6.61295886]
[1729146158612,4.88,153.08,153.06,3.267]
[1729146159415,4.88,153.08,153.07,3.34500509]
[1729146159913,4.88,153.08,153.06,3.267]
[1729146160110,4.88,153.08,153.05,3.2672]
[1729146160517,4.88,153.08,153.06,3.3035983]
[1729146165423,9.04,153.07,153.06,3.3035983]
[1729146168524,4.88,153.08,153.03,9.04]
[1729146168725,4.88,153.08,153.06,3.2671]
[1729146169728,4.88,153.08,153.03,3.27145617]
[1729146170030,4.88,153.08,153.03,9.04]
[1729146170224,4.88,153.08,153.03,12.34523607]
[1729146171126,8.1468,153.08,153.05,3.2673]
[1729146172231,17.1868,153.08,153.05,3.2673]
[1729146173330,9.04,153.06,152.97,4.88]
[1729146173625,9.04,153.04,152.99,9.04]
[1729146173825,12.3077,153.04,153.0,3.2683]
[1729146175828,9.04,153.04,152.99,9.04]
[1729146176137,4.88,153.06,153.03,3.2676]
[1729146176432,9.5027,153.07,153.04,3.2883403]
[1729146177031,9.5027,153.07,153.04,12.3075]
[1729146177229,9.5027,153.07,153.05,3.24944244]
[1729146180936,8.147,153.07,153.05,3.24944244]
[1729146181532,3.2671,153.06,153.05,3.24944244]
[1729146181740,3.2671,153.06,153.03,3.2677]
[1729146182241,3.2671,153.06,153.03,6.60812872]
[1729146183336,4.88,153.07,153.04,9.04]
[1729146183541,4.88,153.09,153.04,9.04]
[1729146183947,9.04,153.1,153.04,9.04]
[1729146184239,10.4631,153.13,153.07,9.04]
[1729146184449,132.64030978,153.15,153.12,9.04]
[1729146184836,3.2654,153.14,153.07,3.20215674]
[1729146185133,3.2654,153.14,153.11,9.04]
[1729146185936,8.1453,153.15,153.12,9.04]
[1729146186136,4.88,153.16,153.13,9.04]
[1729146186537,4.88,153.16,153.13,12.3055]
[1729146186738,4.88,153.16,153.14,3.25460348]
[1729146187339,3.2651,153.16,153.14,3.25460348]
[1729146188744,9.5844,153.19,153.16,3.265]
[1729146188943,9.04,153.18,153.13,12.33556427]
[1729146189544,9.04,153.16,153.13,3.29556427]
[1729146189844,9.04,153.16,153.1,9.04]
[1729146190038,3.2655,153.14,153.1,12.3062]
[1729146190249,9.04,153.16,153.1,12.3062]
[1729146190634,3.2656,153.14,153.1,12.3062]
[1729146190843,3.2656,153.14,153.11,3.266]
[1729146192041,4.88,153.14,153.06,1.3685]
[1729146192239,14.12,153.13,153.05,3.31787371]
[1729146192441,14.12,153.11,153.02,1.3685]
[1729146192746,4.88,153.1,153.04,3.20354102]
[1729146193042,4.88,153.1,153.02,1.3685]
[1729146193241,3.2668,153.08,153.04,3.2674]
[1729146193436,4.88,153.1,153.05,3.20550117]
[1729146193644,14.12,153.09,153.05,3.20550117]
[1729146193846,14.12,153.09,153.03,3.2676]
[1729146193847,3.2671,153.07,153.03,3.2676]
[1729146194048,3.2671,153.07,153.03,3.29207453]
[1729146194241,3.2671,153.07,153.02,1.3685]
[1729146194737,3.2671,153.07,153.03,3.2677]
[1729146195547,3.2671,153.07,153.04,3.21329999]
[1729146200149,3.2671,153.07,153.04,3.2675]
[1729146200351,3.2671,153.07,153.04,6.51086191]
[1729146207853,3.2672,153.06,153.04,3.24336191]
[1729146209654,3.2678,153.03,153.0,3.2683]
[1729146211751,3.2677,153.04,153.0,3.2683]
[1729146211952,1.4002,153.05,153.0,3.2683]
[1729146212352,3.268,153.02,152.99,3.2685]
[1729146212653,8.148,153.02,152.99,3.2685]
[1729146214061,8.148,153.02,153.0,3.2684]
[1729146214461,1.4269,153.06,153.01,9.04]
[1729146214657,4.88,153.06,153.03,12.3077]
[1729146214853,4.88,153.06,153.03,15.65564197]
[1729146215052,4.88,153.06,153.03,6.61564197]
[1729146215560,3.2678,153.03,153.0,9.04]
[1729146215958,13.92,153.02,152.94,3.31701312]
[1729146216157,17.1881,153.02,152.99,3.2685]
[1729146216358,17.1881,153.02,153.0,3.32048107]
[1729146216658,8.1481,153.02,153.0,3.32048107]
[1729146217449,4.88,153.02,153.01,3.268]
[1729146217665,4.88,153.02,153.01,6.55611643]
[1729146217854,4.88,153.02,153.01,3.268]
[1729146223063,4.88,153.02,153.0,6.58812724]
[1729146226367,4.88,153.02,152.97,3.269]
[1729146226368,3.2686,152.99,152.97,3.269]
[1729146226570,9.04,152.99,152.97,3.2059369]
[1729146226766,13.92,152.98,152.93,9.04]
[1729146226965,13.92,152.98,152.93,12.29530931]
[1729146227162,13.92,152.98,152.94,9.04]
[1729146227364,13.92,152.98,152.93,3.25530931]
[1729146227673,13.92,152.98,152.94,9.04]
[1729146227869,13.92,152.98,152.94,12.37988699]
[1729146228371,3.2691,152.97,152.95,3.2693]
[1729146228570,13.92,152.98,152.95,3.2693]
[1729146228973,17.1889,152.98,152.95,3.2693]
[1729146235773,8.1489,152.98,152.95,3.2693]
[1729146240579,1.4522,153.02,152.97,9.04]
[1729146240784,4.88,153.01,152.97,9.04]
[1729146241279,4.88,153.01,152.96,9.04]
[1729146241479,9.04,153.0,152.96,9.04]
[1729146241683,3.2688,152.99,152.97,3.33072346]
[1729146241877,9.04,152.99,152.9,4.88]
[1729146242078,4.88,153.01,152.93,9.04]
[1729146242079,9.04,152.97,152.93,9.04]
[1729146242277,13.92,152.97,152.93,12.23075786]
[1729146242479,4.88,152.97,152.93,12.23075786]
[1729146242688,17.1891,152.97,152.94,3.2696]
[1729146243090,17.1891,152.97,152.93,12.23075786]
[1729146243397,17.1891,152.97,152.95,3.2695]
[1729146244179,17.1891,152.97,152.96,3.29290053]
[1729146244591,17.1891,152.97,152.94,3.2696]
[1729146244795,17.1891,152.97,152.95,3.25496841]
[1729146249094,2.7781,153.01,152.94,9.04]
[1729146249292,9.04,152.99,152.94,9.04]
[1729146249792,12.3089,152.98,152.95,3.2694]
[1729146250384,3.2689,152.98,152.95,3.2694]
[1729146250582,3.2689,152.98,152.96,3.28155768]
[1729146251793,8.1489,152.98,152.96,3.28155768]
[1729146252893,13.92,152.98,152.89,1.3362]
[1729146253089,3.2695,152.95,152.91,9.04]
[1729146253289,9.04,152.94,152.89,1.3362]
[1729146253689,13.92,152.94,152.89,1.3362]
[1729146253891,17.1898,152.94,152.91,3.2702]
[1729146255491,17.1898,152.94,152.92,3.2701]
[1729146255693,17.1898,152.94,152.93,3.26934384]
[1729146256195,13.92,152.94,152.93,3.26934384]
[1729146258893,17.1897,152.94,152.93,3.26934384]
[1729146259301,17.1897,152.94,152.89,10.3762]
[1729146260103,4.88,152.94,152.92,3.27]
[1729146260296,4.88,152.94,152.93,3.33727119]
[1729146260487,9.04,152.95,152.93,3.33727119]
[1729146260692,4.88,152.97,152.93,9.04]
[1729146260890,4.88,152.97,152.94,3.23161165]
[1729146261292,3.2693,152.96,152.94,6.50121165]
[1729146262593,3.2693,152.96,152.94,3.23161165]
[1729146262992,4.88,152.97,152.94,3.23161165]
[1729146263196,4.88,152.99,152.96,9.04]
[1729146263492,1.4522,153.02,152.97,9.04]
[1729146263694,8.1483,153.01,152.98,3.2687]
[1729146263997,4.88,153.01,152.96,3.19149434]
[1729146264196,4.88,153.01,152.99,3.2685]
[1729146264392,4.88,153.01,152.99,6.47438665]
[1729146264998,4.88,153.01,152.99,3.20588665]
[1729146266396,8.1482,153.01,152.99,3.20588665]
[1729146273108,3.268,153.02,152.98,9.04]
[1729146273313,3.268,153.02,152.99,9.04]
[1729146273518,3.268,153.02,153.0,3.33268579]
[1729146274413,3.268,153.02,153.0,6.60108579]
[1729146274614,2.7334,153.05,152.99,9.04]
[1729146274820,4.88,153.04,153.01,9.04]
[1729146275208,4.88,153.04,153.02,3.2679]
[1729146275810,2.8204,153.1,152.96,1.3857]
[1729146276116,9.04,153.07,153.02,9.04]
[1729146276316,3.2672,153.06,153.03,3.2677]
[1729146279218,12.307,153.07,153.04,3.2676]
[1729146280815,12.307,153.07,153.02,3.30947649]
[1729146281024,12.3073,153.06,153.02,3.2678]
[1729146281224,12.3073,153.06,153.02,6.45492827]
[1729146281814,12.3073,153.06,153.02,3.18712827]
[1729146282020,12.3073,153.06,153.03,3.2678]
[1729146282716,12.3073,153.06,153.04,3.25936146]
[1729146284219,12.3073,153.06,153.01,9.04]
[1729146284220,3.2677,153.04,153.01,3.2681]
[1729146284421,3.2677,153.04,152.99,13.9]
[1729146284422,9.04,153.04,153.02,3.25772704]
[1729146284615,9.04,153.04,152.99,9.04]
[1729146285123,3.2678,153.03,153.0,3.2683]
[1729146287219,3.2684,153.0,152.99,3.20379116]
[1729146287424,12.3084,153.0,152.96,4.6549]
[1729146287828,12.3084,153.0,152.96,7.8707627]
[1729146288131,12.3084,153.0,152.97,3.2689]
[1729146289025,3.2684,153.0,152.97,3.2689]
[1729146289535,4.86,153.01,152.98,9.04]
[1729146289920,4.86,153.01,152.99,3.2685]
[1729146290716,8.1282,153.02,152.99,3.2685]
[1729146291124,8.1282,153.02,152.9,6.5409]
[1729146291125,9.04,153.0,152.85,6.543]
[1729146291326,9.04,152.96,152.9,9.04]
[1729146291522,13.9,152.96,152.88,8.09340235]
[1729146291724,4.86,152.96,152.9,9.04]
[1729146291919,4.86,152.96,152.92,9.04]
[1729146292320,4.86,152.96,152.9,9.04]
[1729146292321,13.9,152.96,152.9,9.04]
[1729146292523,9.04,152.95,152.88,8.09765295]
[1729146292726,3.2699,152.94,152.9,3.2704]
[1729146292918,9.04,152.93,152.88,8.09765295]
[1729146293118,9.04,152.93,152.88,17.13765295]
[1729146293727,9.04,152.92,152.88,8.09765295]
[1729146294130,9.04,152.94,152.88,17.13765295]
[1729146294628,9.04,152.94,152.89,9.04]
[1729146294929,70.6,153.03,152.89,9.04]
[1729146295226,4.86,153.02,152.92,9.04]
[1729146295419,12.309,152.98,152.94,3.2695]
[1729146295626,9.04,152.98,152.94,3.2695]
[1729146296225,3.2691,152.97,152.94,3.2695]
[1729146296428,9.04,152.98,152.91,3.2703]
[1729146296625,9.04,152.98,152.92,9.04]
[1729146296826,17.169,152.98,152.92,9.04]
[1729146297537,12.3091,152.97,152.94,3.2695]
[1729146301833,9.04,152.98,152.92,9.04]
[1729146302027,70.6,153.03,152.94,9.04]
[1729146302224,9.04,153.0,152.94,9.04]
[1729146302730,12.3086,153.0,152.94,9.04]
[1729146303127,12.3086,153.0,152.96,3.2691]
[1729146303329,12.3086,153.0,152.96,6.51685518]
[1729146303829,9.04,152.99,152.96,6.51685518]
[1729146304334,9.04,152.99,152.97,3.269]
[1729146305031,9.04,152.98,152.96,3.24775518]
[1729146305333,3.2691,152.97,152.94,3.2697]
[1729146305536,9.04,152.96,152.94,3.2697]
[1729146305835,9.04,152.96,152.91,9.04]
[1729146306136,9.04,152.97,152.92,9.04]
[1729146306528,4.86,152.98,152.94,9.04]
[1729146306724,13.9,152.98,152.94,9.04]
[1729146307035,13.9,152.98,152.95,3.2693]
[1729146307036,17.169,152.98,152.95,3.2693]
[1729146309224,9.04,152.97,152.95,3.2693]
[1729146309930,12.3092,152.97,152.93,3.2698]
[1729146310229,12.3092,152.97,152.92,9.04]
[1729146310833,12.3092,152.97,152.94,3.2695]
[1729146311835,9.04,152.97,152.92,9.04]
[1729146312132,12.309,152.98,152.92,9.04]
[1729146312334,3.2675,153.05,153.01,3.2681]
[1729146312535,12.3075,153.05,153.01,6.4858788]
[1729146312734,12.3075,153.05,153.01,3.2177788]
[1729146312931,12.3075,153.05,153.02,3.268]
[1729146313137,3.2675,153.05,153.02,3.2874461]
[1729146313437,3.2675,153.05,153.01,9.04]
[1729146313941,3.2674,153.05,153.02,3.268]
[1729146315038,12.3074,153.05,153.01,6.59011621]
[1729146315240,9.04,153.05,153.01,6.59011621]
[1729146315441,3.2676,153.04,153.01,6.59011621]
[1729146317535,9.04,153.05,153.01,3.32211621]
[1729146317732,9.04,153.02,152.97,11.6979]
[1729146318139,4.86,153.06,152.95,13.9]
[1729146318140,9.04,153.0,152.95,13.9]
[1729146319036,9.04,152.99,152.94,9.04]
[1729146319739,9.04,152.99,152.92,2.7111]
[1729146319740,9.04,152.97,152.92,1.3248]
[1729146319942,9.04,152.96,152.92,10.3648]
[1729146320641,12.3094,152.96,152.93,3.2697]
[1729146320840,9.04,152.95,152.86,226.0]
[1729146321044,9.04,152.94,152.89,9.04]
[1729146321548,73.4886,153.04,152.91,9.04]
[1729146321846,14.14,152.99,152.9,14.14]
[1729146322048,8.1287,152.99,152.92,14.14]
[1729146322240,4.86,152.99,152.92,14.14]
[1729146322435,14.14,153.02,152.92,15.5882]
[1729146322635,4.86,153.01,152.94,14.14]
[1729146322843,73.4886,153.04,152.98,14.14]
[1729146322844,4.86,153.03,152.98,14.14]
[1729146323048,8.128,153.03,152.99,3.2685]
[1729146323248,8.128,153.03,152.99,6.50850156]
[1729146323545,4.86,153.03,152.99,6.50850156]
[1729146323741,3.2681,153.02,152.99,6.50850156]
[1729146324947,4.86,153.03,152.99,3.24000156]
[1729146325144,3.2682,153.01,152.98,3.2688]
[1729146325342,3.2682,153.01,152.98,6.5958251]
[1729146325539,3.2682,153.01,152.98,3.2688]
[1729146326047,3.2682,153.01,152.98,6.55332183]
[1729146327545,3.2681,153.02,152.99,3.2686]
[1729146328244,3.2683,153.01,152.98,6.55332183]
[1729146330739,3.2681,153.02,153.0,3.2684]
[1729146331147,3.2681,153.02,153.0,3.3149235]
[1729146331343,3.2681,153.02,152.99,3.2686]
[1729146331543,3.2681,153.02,152.99,6.57731211]
[1729146333546,3.268,153.02,152.99,6.57731211]
[1729146343557,19.0,153.03,152.94,14.14]
[1729146343760,9.05,152.99,152.94,9.05]
[1729146343967,13.91,152.99,152.94,9.05]
[1729146344455,13.91,152.99,152.94,12.39293892]
[1729146345963,1.3254,152.98,152.94,12.39293892]
[1729146346364,9.05,152.97,152.94,3.34293892]
[1729146346768,9.05,152.97,152.92,9.05]
[1729146347863,3.2692,152.97,152.94,9.05]
[1729146348066,4.86,152.99,152.95,9.05]
[1729146348763,8.1288,152.99,152.96,3.2692]
[1729146349463,4.86,153.03,152.98,9.05]
[1729146349759,4.86,153.03,153.0,9.05]
[1729146349965,8.1278,153.03,153.0,12.3184]
[1729146350461,8.1278,153.03,153.0,15.67016072]
[1729146351161,4.86,153.03,153.01,3.2681]
[1729146352269,4.86,153.03,153.0,6.62016072]
[1729146352458,4.86,153.03,153.0,3.2684]
[1729146353170,4.86,153.03,153.0,6.59988665]
[1729146353565,4.86,153.03,153.0,3.33148665]
[1729146353866,4.86,153.03,152.98,17.3887]
[1729146354264,3.2683,153.01,152.98,6.48183592]
[1729146355971,4.86,153.03,152.98,3.21313592]
[1729146356162,4.86,153.03,152.96,17.3892]
[1729146356672,3.2686,153.0,152.96,20.68733529]
[1729146360870,4.86,153.03,152.96,20.68733529]
[1729146361071,3.2687,152.99,152.96,20.68733529]
[1729146361270,14.12,153.01,152.96,3.29813529]
[1729146361463,3.269,152.98,152.94,3.2696]
[1729146361676,3.269,152.98,152.94,3.25856421]